bitfinex/quotes_BTCUSD_20240803
["timestamp","ask_amount","ask_price","bid_price","bid_amount"]
[1722727286115,1.66269999,60785.0,60784.0,0.002]
[1722727286330,1.68569999,60785.0,60784.0,0.002]
[1722727286936,1.4827037,60785.0,60784.0,0.002]
[1722727287150,0.197443,60777.0,60756.0,0.1642]
[1722727287371,0.098749,60760.0,60759.0,0.020913]
[1722727287789,0.098745,60763.0,60762.0,0.02]
[1722727288190,0.19748,60766.0,60765.0,0.01]
[1722727288393,0.493699,60766.0,60765.0,0.01]
[1722727288523,0.098749,60760.0,60759.0,0.020913]
[1722727288732,0.098749,60760.0,60759.0,0.001913]
[1722727288733,0.104749,60760.0,60759.0,0.001913]
[1722727288983,0.104749,60760.0,60759.0,0.021913]
[1722727289187,0.296241,60762.0,60761.0,0.01]
[1722727290182,0.197464,60771.0,60766.0,0.01]
[1722727290183,0.296215,60767.0,60766.0,0.01]
[1722727290382,0.296215,60767.0,60762.0,0.01]
[1722727290383,0.296227,60764.0,60763.0,0.01]
[1722727291146,0.32204427,60764.0,60763.0,0.01]
[1722727291319,0.006,60760.0,60759.0,0.020913]
[1722727291521,0.104749,60760.0,60759.0,0.020913]
[1722727291722,0.197485,60764.0,60761.0,0.02]
[1722727291723,0.098747,60762.0,60761.0,0.02]
[1722727293220,0.106747,60762.0,60761.0,0.02]
[1722727293683,0.114747,60762.0,60761.0,0.02]
[1722727293886,0.312238,60762.0,60761.0,0.02]
[1722727294096,0.098748,60761.0,60759.0,0.000913]
[1722727294305,0.098748,60761.0,60760.0,0.02]
[1722727295211,0.016,60762.0,60759.0,0.000913]
[1722727295212,0.1407,60764.0,60759.0,0.000913]
[1722727295394,0.098749,60760.0,60759.0,0.000913]
[1722727295596,0.296247,60760.0,60759.0,0.000913]
[1722727296042,0.296247,60760.0,60759.0,0.010913]
[1722727296358,0.098749,60760.0,60759.0,0.010913]
[1722727296804,0.006,60760.0,60759.0,0.010913]
[1722727297080,0.104749,60760.0,60759.0,0.010913]
[1722727297284,0.006,60760.0,60759.0,0.010913]
[1722727297508,0.302247,60760.0,60759.0,0.000913]
[1722727298054,0.504745,60760.0,60759.0,0.000913]
[1722727298877,0.51956404,60760.0,60759.0,0.010913]
[1722727299081,0.493745,60760.0,60759.0,0.010913]
[1722727299286,0.512745,60760.0,60759.0,0.012913]
[1722727299618,0.512745,60760.0,60759.0,0.011913]
[1722727299914,0.509745,60760.0,60759.0,0.011913]
[1722727300117,0.520745,60760.0,60759.0,0.012913]
[1722727300554,0.707243,60760.0,60759.0,0.001913]
[1722727300911,0.509745,60760.0,60759.0,0.011913]
[1722727301083,0.493745,60760.0,60759.0,0.010913]
[1722727301550,0.309247,60760.0,60759.0,0.011913]
[1722727301744,0.013,60760.0,60759.0,0.020913]
[1722727301937,0.025,60760.0,60759.0,0.021913]
[1722727302131,0.039,60760.0,60759.0,0.021913]
[1722727302373,0.039,60760.0,60759.0,0.020913]
[1722727302374,0.027,60760.0,60759.0,0.020913]
[1722727302551,0.02581869,60760.0,60759.0,0.020913]
[1722727302753,0.05381869,60760.0,60759.0,0.021913]
[1722727303161,0.03981869,60760.0,60759.0,0.020913]
[1722727303584,0.014,60760.0,60759.0,0.020913]
[1722727303717,0.014,60760.0,60759.0,0.021913]
[1722727303718,0.028,60760.0,60759.0,0.021913]
[1722727304543,0.028,60760.0,60759.0,0.327713]
[1722727304744,0.028,60760.0,60759.0,0.59221389]
[1722727304944,0.028,60760.0,60759.0,0.49246389]
[1722727304945,0.014,60760.0,60759.0,0.49246389]
[1722727305148,0.019,60760.0,60759.0,0.59221389]
[1722727305343,0.033,60760.0,60759.0,0.49446389]
[1722727305577,0.005,60760.0,60759.0,0.49346389]
[1722727305778,0.09873,60772.0,60771.0,0.01]
[1722727306483,0.2049615,60774.0,60773.0,0.01]
[1722727306644,0.3036875,60774.0,60773.0,0.01]
[1722727306851,0.32950204,60774.0,60773.0,0.01]
[1722727307260,0.3036875,60774.0,60773.0,0.01]
[1722727307484,0.0075075,60774.0,60773.0,0.01]
[1722727307687,0.098723,60776.0,60775.0,0.01]
[1722727309099,0.112723,60776.0,60775.0,0.011]
[1722727309654,0.126723,60776.0,60775.0,0.012]
[1722727310525,0.05381336,60776.0,60775.0,0.012]
[1722727310925,0.028,60776.0,60775.0,0.022]
[1722727311125,0.028,60776.0,60775.0,0.318173]
[1722727311328,0.028,60776.0,60775.0,0.120724]
[1722727311788,0.028,60776.0,60775.0,0.56684194]
[1722727312340,0.014,60776.0,60775.0,0.56584194]
[1722727312597,0.00083,60785.0,60784.0,0.02]
[1722727313494,0.197386,60795.0,60784.0,0.02]
[1722727313694,0.197386,60795.0,60789.0,0.01]
[1722727313897,0.098696,60793.0,60790.0,0.00157439]
[1722727314129,0.296073,60796.0,60795.0,0.01]
[1722727314512,0.32187926,60796.0,60795.0,0.01]
[1722727314895,0.098693,60794.0,60793.0,0.01]
[1722727315321,0.098696,60793.0,60791.0,0.01]
[1722727315647,0.098693,60795.0,60794.0,0.01]
[1722727316067,0.098693,60795.0,60778.0,0.197438]
[1722727316068,0.098694,60794.0,60781.0,0.00157439]
[1722727316276,0.098695,60793.0,60789.0,0.011]
[1722727316475,0.098697,60792.0,60789.0,0.011]
[1722727316693,0.011,60795.0,60792.0,0.01]
[1722727316906,0.098693,60794.0,60793.0,0.01]
[1722727317110,0.098693,60794.0,60789.0,0.001]
[1722727317320,0.098696,60793.0,60791.0,0.01]
[1722727317491,0.098697,60792.0,60790.0,0.01]
[1722727317696,0.098696,60793.0,60792.0,0.01]
[1722727317901,0.011,60795.0,60794.0,0.01]
[1722727318097,0.46181789,60797.0,60796.0,0.01]
[1722727318278,0.58481789,60797.0,60796.0,0.01]
[1722727318476,0.58481789,60797.0,60793.0,0.01]
[1722727318477,0.098693,60794.0,60793.0,0.01]
[1722727318678,0.41193412,60797.0,60793.0,0.01]
[1722727318877,0.107693,60794.0,60793.0,0.01]
[1722727319315,0.098693,60794.0,60793.0,0.01]
[1722727319547,0.29608,60794.0,60793.0,0.01]
[1722727319886,0.098693,60794.0,60793.0,0.011]
[1722727320442,0.098695,60794.0,60789.0,0.02]
[1722727320700,0.098695,60794.0,60767.0,0.08291805]
[1722727320701,0.082256,60786.0,60785.0,0.02]
[1722727320895,0.082256,60786.0,60785.0,0.01]
[1722727320896,0.1407,60786.0,60785.0,0.01]
[1722727321116,0.1407,60792.0,60791.0,0.01]
[1722727321307,0.30645089,60792.0,60785.0,0.01]
[1722727321507,0.246778,60783.0,60782.0,0.01]
[1722727321726,0.082259,60783.0,60782.0,0.01]
[1722727322548,0.10806815,60783.0,60782.0,0.01]
[1722727323059,0.082259,60783.0,60782.0,0.01]
[1722727323400,0.086259,60783.0,60782.0,0.01]
[1722727324615,0.250778,60783.0,60782.0,0.01]
[1722727325110,0.252778,60783.0,60782.0,0.01]
[1722727325416,0.246783,60782.0,60781.0,0.01]
[1722727325819,0.006,60783.0,60777.0,0.01]
[1722727325820,0.246799,60778.0,60777.0,0.01]
[1722727326076,0.082266,60778.0,60777.0,0.01]
[1722727326239,0.246799,60778.0,60777.0,0.01]
[1722727326441,0.27261004,60778.0,60777.0,0.01]
[1722727327361,0.164535,60777.0,60773.0,0.01]
[1722727327563,0.246816,60774.0,60773.0,0.01]
[1722727328330,0.082272,60774.0,60773.0,0.01]
[1722727329943,0.00733729,60779.0,60778.0,0.01]
[1722727330150,0.2477803,60789.0,60788.0,0.01]
[1722727330151,0.04918687,60789.0,60788.0,0.01]
[1722727330366,0.082249,60791.0,60790.0,0.01]
[1722727330588,0.08962073,60791.0,60790.0,0.01]
[1722727330777,0.11542878,60791.0,60790.0,0.01]
[1722727331315,0.08962073,60791.0,60790.0,0.01]
[1722727331452,0.10362073,60791.0,60790.0,0.01]
[1722727331862,0.164486,60796.0,60790.0,0.01]
[1722727332088,0.082248,60792.0,60791.0,0.01157439]
[1722727332274,0.24799289,60796.0,60795.0,0.01]
[1722727332638,0.27099289,60796.0,60795.0,0.01]
[1722727333001,0.00750353,60797.0,60796.0,0.01]
[1722727333242,0.00083,60798.0,60797.0,0.01]
[1722727333846,0.083069,60798.0,60797.0,0.01]
[1722727334107,0.165309,60798.0,60795.0,0.01]
[1722727334273,0.082241,60797.0,60796.0,0.00157439]
[1722727334482,0.082241,60797.0,60796.0,0.01157439]
[1722727334720,0.082241,60797.0,60796.0,0.01]
[1722727335449,0.083241,60797.0,60796.0,0.011]
[1722727335658,0.097241,60797.0,60796.0,0.011]
[1722727335878,0.097241,60797.0,60796.0,0.001]
[1722727336084,0.261722,60797.0,60796.0,0.001]
[1722727336520,0.261722,60797.0,60796.0,0.011]
[1722727336722,0.097241,60797.0,60796.0,0.011]
[1722727336949,0.015,60797.0,60796.0,0.011]
[1722727338215,0.12304461,60797.0,60796.0,0.011]
[1722727338834,0.04080461,60797.0,60796.0,0.011]
[1722727339475,0.015,60797.0,60796.0,0.011]
[1722727339897,0.015,60797.0,60796.0,0.1849]
[1722727340982,0.001,60797.0,60796.0,0.1849]
[1722727341138,0.015,60797.0,60796.0,0.1849]
[1722727341306,0.015,60797.0,60796.0,0.1839]
[1722727341307,0.014,60797.0,60796.0,0.1839]
[1722727341502,0.024,60797.0,60796.0,0.1849]
[1722727341708,0.01,60797.0,60796.0,0.1849]
[1722727341959,0.021,60797.0,60796.0,0.1849]
[1722727342318,0.021,60797.0,60796.0,0.43289289]
[1722727342612,0.021,60797.0,60796.0,0.1849]
[1722727342825,0.04680252,60797.0,60796.0,0.1849]
[1722727343025,0.50522976,60817.0,60807.0,0.01]
[1722727343026,0.082226,60808.0,60807.0,0.01]
[1722727343225,0.246678,60808.0,60807.0,0.01]
[1722727343438,0.082226,60808.0,60807.0,0.01]
[1722727343617,0.246678,60808.0,60807.0,0.01]
[1722727343765,0.082226,60808.0,60807.0,0.01]
[1722727344552,0.014,60808.0,60807.0,0.01]
[1722727344972,0.014,60808.0,60806.0,0.01]
[1722727344973,0.082219,60813.0,60812.0,0.01]
[1722727345225,0.164421,60820.0,60816.0,0.01]
[1722727345226,0.08993445,60817.0,60816.0,0.01]
[1722727345426,0.082216,60815.0,60814.0,0.01]
[1722727345866,0.164427,60817.0,60816.0,0.01]
[1722727346071,0.24664,60817.0,60816.0,0.01]
[1722727346604,0.082216,60815.0,60814.0,0.01]
[1722727346850,0.003,60817.0,60814.0,0.01]
[1722727347064,0.082216,60815.0,60814.0,0.01]
[1722727347241,0.003,60817.0,60812.0,0.001]
[1722727347421,0.085213,60817.0,60816.0,0.11]
[1722727348035,0.26364,60817.0,60816.0,0.1]
[1722727348488,0.24964,60817.0,60816.0,0.1]
[1722727348628,0.57681789,60817.0,60816.0,0.1]
[1722727348831,0.61381789,60817.0,60816.0,0.101]
[1722727349030,0.77824489,60817.0,60816.0,0.101]
[1722727349398,0.61381789,60817.0,60816.0,0.101]
[1722727349525,0.096213,60817.0,60816.0,0.112]
[1722727350096,0.096213,60817.0,60816.0,0.102]
[1722727350380,0.26064,60817.0,60816.0,0.112]
[1722727350608,0.26064,60817.0,60816.0,0.102]
[1722727351592,0.45086434,60817.0,60816.0,0.102]
[1722727351796,0.61661523,60817.0,60816.0,0.102]
[1722727352037,0.63961523,60817.0,60816.0,0.102]
[1722727352160,0.80404223,60817.0,60816.0,0.102]
[1722727352771,0.46846923,60817.0,60816.0,0.102]
[1722727353235,0.85830923,60817.0,60816.0,0.102]
[1722727353431,1.13640923,60817.0,60816.0,0.102]
[1722727355807,1.13640923,60817.0,60816.0,0.101]
[1722727356171,1.13940923,60817.0,60816.0,0.102]
[1722727356434,1.31040923,60817.0,60816.0,0.101]
[1722727356643,1.39895791,60817.0,60816.0,0.101]
[1722727356812,1.29670923,60817.0,60816.0,0.101]
[1722727357291,1.29670923,60817.0,60816.0,0.102]
[1722727357292,1.29870923,60817.0,60816.0,0.102]
[1722727357690,1.29670923,60817.0,60816.0,0.101]
[1722727358047,1.29870923,60817.0,60816.0,0.102]
[1722727359636,1.4044271,60817.0,60816.0,0.102]
[1722727360257,0.45155523,60817.0,60816.0,0.102]
[1722727360628,0.45155523,60817.0,60816.0,0.4272]
[1722727360629,0.005,60817.0,60816.0,0.4272]
[1722727361036,0.003,60817.0,60816.0,0.4262]
[1722727361367,0.017,60817.0,60816.0,0.427113]
[1722727361552,0.04362476,60817.0,60816.0,0.427113]
[1722727361783,0.02962476,60817.0,60816.0,0.427113]
[1722727361986,0.02662476,60817.0,60816.0,0.426113]
[1722727362100,0.02662476,60817.0,60816.0,0.427113]
[1722727362304,0.04062476,60817.0,60816.0,0.427113]
[1722727362500,0.04062476,60817.0,60816.0,0.426113]
[1722727362703,0.01483,60817.0,60816.0,0.427113]
[1722727362956,0.02283,60817.0,60816.0,0.427113]
[1722727363163,0.03083,60817.0,60816.0,0.428113]
[1722727364859,0.66188931,60834.0,60832.0,0.01]
[1722727365064,0.023,60833.0,60829.0,0.01]
[1722727365266,0.082195,60831.0,60830.0,0.00157439]
[1722727365413,0.082195,60831.0,60829.0,0.01]
[1722727365622,0.082195,60831.0,60830.0,0.01157439]
[1722727365827,0.082195,60831.0,60830.0,0.01]
[1722727366047,0.082196,60830.0,60829.0,0.01]
[1722727366500,0.02579165,60831.0,60830.0,0.3386]
[1722727366501,0.03979165,60831.0,60830.0,0.3386]
[1722727367266,0.014,60831.0,60830.0,0.3286]
[1722727367482,0.009,60831.0,60830.0,0.3286]
[1722727367690,0.091194,60831.0,60830.0,0.3286]
[1722727367914,0.099194,60831.0,60830.0,0.1869]
[1722727368161,0.090194,60831.0,60830.0,0.1869]
[1722727368522,0.008,60831.0,60830.0,0.003]
[1722727368891,0.008,60831.0,60830.0,0.014]
[1722727370583,0.03378897,60831.0,60830.0,0.014]
[1722727370946,0.008,60831.0,60830.0,0.014]
[1722727371976,0.082184,60839.0,60838.0,0.002]
[1722727373009,0.164364,60841.0,60835.0,0.012]
[1722727373213,0.082184,60839.0,60838.0,0.001]
[1722727373411,0.269552,60839.0,60838.0,0.001]
[1722727373843,0.269552,60839.0,60838.0,0.003]
[1722727374011,0.269552,60839.0,60818.0,0.00157439]
[1722727374012,0.082196,60830.0,60829.0,0.002]
[1722727374304,0.246588,60830.0,60829.0,0.002]
[1722727374455,0.57628,60830.0,60829.0,0.002]
[1722727374654,0.411888,60830.0,60829.0,0.002]
[1722727375068,0.57628,60830.0,60829.0,0.002]
[1722727375238,0.57628,60830.0,60829.0,0.001]
[1722727375439,0.74203089,60830.0,60829.0,0.001]
[1722727377037,0.9889377,60830.0,60829.0,0.001]
[1722727377232,1.0889377,60830.0,60829.0,0.001]
[1722727377669,1.19290922,60830.0,60829.0,0.001]
[1722727378115,0.08221,60820.0,60817.0,0.002]
[1722727378290,0.08221,60820.0,60816.0,0.110913]
[1722727378291,0.082213,60817.0,60816.0,0.100913]
[1722727378468,0.24664,60817.0,60816.0,0.100913]
[1722727379542,0.02579409,60820.0,60816.0,0.431513]
[1722727379696,0.27242209,60820.0,60819.0,0.002]
[1722727379906,0.10800309,60820.0,60819.0,0.002]
[1722727380534,0.10800309,60820.0,60816.0,0.429513]
[1722727380535,0.19021309,60820.0,60816.0,0.431513]
[1722727380739,0.164422,60819.0,60816.0,0.286813]
[1722727381144,0.19021309,60820.0,60819.0,0.002]
[1722727381362,0.27242209,60820.0,60819.0,0.002]
[1722727381871,0.082211,60819.0,60818.0,0.002]
[1722727382283,0.02579409,60820.0,60819.0,0.002]
[1722727383492,0.10800309,60820.0,60819.0,0.002]
[1722727383726,0.082209,60820.0,60819.0,0.002]
[1722727384332,0.085209,60820.0,60819.0,0.002]
[1722727385142,0.003,60820.0,60819.0,0.002]
[1722727385559,0.003,60820.0,60816.0,0.284813]
[1722727385560,0.003,60820.0,60818.0,0.002]
[1722727385686,0.003,60820.0,60817.0,0.002]
[1722727385887,0.082212,60818.0,60817.0,0.002]
[1722727387317,0.167419,60820.0,60819.0,0.002]
[1722727387739,0.164419,60820.0,60819.0,0.002]
[1722727388407,0.246628,60820.0,60819.0,0.002]
[1722727389807,0.0491484,60826.0,60816.0,0.100913]
[1722727389808,0.0491484,60826.0,60825.0,0.002]
[1722727390015,0.0491484,60826.0,60816.0,0.100913]
[1722727390016,0.08255845,60827.0,60826.0,0.002]
[1722727390282,0.08255845,60827.0,60822.0,0.01]
[1722727390283,0.08990916,60828.0,60827.0,0.002]
[1722727390429,0.09026064,60828.0,60827.0,0.002]
[1722727391354,0.00771116,60828.0,60827.0,0.012]
[1722727391750,0.1313414,60832.0,60831.0,0.002]
[1722727391952,0.23638636,60832.0,60831.0,0.012]
[1722727392170,0.0491484,60838.0,60834.0,0.002]
[1722727392376,0.0491484,60839.0,60838.0,0.002]
[1722727392592,0.32906236,60839.0,60838.0,0.002]
[1722727392795,0.082189,60835.0,60834.0,0.002]
[1722727392920,0.082189,60835.0,60827.0,0.001]
[1722727392921,0.082191,60834.0,60827.0,0.001]
[1722727393121,0.08219,60835.0,60827.0,0.001]
[1722727393317,0.08219,60835.0,60825.0,0.14645827]
[1722727393748,0.04879013,60834.0,60825.0,0.14645827]
[1722727394182,0.04879013,60834.0,60831.0,0.001]
[1722727394183,0.007,60832.0,60831.0,0.001]
[1722727394367,0.03,60832.0,60831.0,0.001]
[1722727394567,0.023,60832.0,60825.0,0.14645827]
[1722727394771,0.00083,60831.0,60825.0,0.14745827]
[1722727395015,0.00083,60831.0,60825.0,0.14845827]
[1722727395365,0.00083,60831.0,60825.0,0.14745827]
[1722727395778,0.00083,60831.0,60825.0,0.14845827]
[1722727396185,0.00083,60831.0,60825.0,0.14745827]
[1722727396988,0.00083,60831.0,60825.0,0.14645827]
[1722727397187,0.00883,60831.0,60825.0,0.14745827]
[1722727397386,0.023,60830.0,60825.0,0.14745827]
[1722727397791,0.023,60830.0,60825.0,0.14645827]
[1722727398075,0.00083,60831.0,60825.0,0.14645827]
[1722727398465,0.00025619,60830.0,60825.0,0.14645827]
[1722727398821,0.02325619,60830.0,60825.0,0.14645827]
[1722727399222,0.00025619,60830.0,60825.0,0.14645827]
[1722727399426,0.00025619,60826.0,60825.0,0.31157932]
[1722727399627,0.00025619,60826.0,60825.0,0.78313021]
[1722727399829,0.00025619,60826.0,60825.0,0.94753621]
[1722727400307,0.00025619,60826.0,60825.0,1.48881634]
[1722727400731,0.00025619,60826.0,60825.0,1.49177857]
[1722727400950,0.00025619,60826.0,60825.0,1.48877857]
[1722727401164,0.00025619,60826.0,60825.0,1.47977857]
[1722727401584,0.00025619,60826.0,60825.0,1.47677857]
[1722727401776,0.00025619,60826.0,60825.0,1.14796657]
[1722727401976,0.00025619,60826.0,60825.0,1.16285196]
[1722727401977,0.00125619,60826.0,60825.0,1.16285196]
[1722727402188,0.00125619,60826.0,60825.0,1.32725796]
[1722727402392,0.00125619,60826.0,60825.0,1.34125796]
[1722727402715,0.00125619,60826.0,60825.0,1.32725796]
[1722727403117,0.00025619,60826.0,60825.0,1.31325796]
[1722727403472,0.00025619,60826.0,60825.0,1.16285196]
[1722727403473,0.00125619,60826.0,60825.0,1.16285196]
[1722727403883,0.00025619,60826.0,60825.0,1.14885196]
[1722727404119,0.00025619,60826.0,60825.0,1.04753621]
[1722727404372,0.00025619,60826.0,60825.0,1.16284371]
[1722727404373,0.00125619,60826.0,60825.0,1.16284371]
[1722727404541,0.00125619,60826.0,60825.0,1.06153621]
[1722727404731,0.00125619,60826.0,60825.0,1.34124822]
[1722727405274,0.00125619,60826.0,60825.0,1.23994221]
[1722727406081,0.00125619,60826.0,60825.0,1.22594221]
[1722727406397,0.00125619,60826.0,60825.0,1.23994221]
[1722727407192,0.00083,60831.0,60830.0,0.77358]
[1722727407352,0.00083,60831.0,60830.0,1.20479817]
[1722727407551,0.02661234,60831.0,60830.0,1.46919017]
[1722727407760,0.02661234,60831.0,60830.0,1.46912873]
[1722727407981,0.00083,60831.0,60830.0,1.51806518]
[1722727408351,0.00029,60835.0,60834.0,0.585333]
[1722727408551,0.00029,60835.0,60834.0,1.48461578]
[1722727409326,0.00029,60835.0,60834.0,1.52906137]
[1722727409699,0.00029,60835.0,60834.0,1.48661578]
[1722727410092,0.00029,60835.0,60834.0,1.54506137]
[1722727410317,0.08215,60864.0,60847.0,0.082172]
[1722727410522,0.49750831,60851.0,60848.0,0.24792189]
[1722727410719,0.023,60863.0,60848.0,0.24792189]
[1722727411512,0.023,60863.0,60848.0,0.16575089]
[1722727412477,0.02577881,60860.0,60848.0,0.16575089]
[1722727412657,0.08215,60864.0,60848.0,0.16575089]
[1722727412658,0.023,60859.0,60848.0,0.16675089]
[1722727413044,0.023,60863.0,60848.0,0.16775089]
[1722727413237,0.082153,60862.0,60848.0,0.16775089]
[1722727413497,0.023,60861.0,60848.0,0.16675089]
[1722727413699,0.023,60863.0,60848.0,0.16575089]
[1722727413853,0.023,60863.0,60848.0,0.16775089]
[1722727414058,0.023,60863.0,60848.0,0.16675089]
[1722727414263,0.023,60863.0,60848.0,0.24992189]
[1722727414470,0.023,60863.0,60848.0,0.24892189]
[1722727414669,0.023,60863.0,60848.0,0.24992189]
[1722727414855,0.105152,60863.0,60848.0,0.16775089]
[1722727415464,0.02577886,60860.0,60848.0,0.16775089]
[1722727415674,0.02577886,60860.0,60848.0,0.16675089]
[1722727415675,0.023,60859.0,60848.0,0.16675089]
[1722727415883,0.023,60859.0,60848.0,0.001]
[1722727416078,0.00157439,60858.0,60848.0,0.001]
[1722727416385,0.023,60860.0,60848.0,0.002]
[1722727416386,0.00157439,60859.0,60848.0,0.002]
[1722727416788,0.00157439,60859.0,60848.0,0.001]
[1722727416959,0.02457439,60860.0,60845.0,0.3326]
[1722727417191,0.02457439,60860.0,60848.0,0.001]
[1722727417318,0.02457439,60860.0,60848.0,0.002]
[1722727417723,0.02457439,60860.0,60848.0,0.001]
[1722727417941,0.082157,60859.0,60848.0,0.001]
[1722727418144,0.02457439,60858.0,60848.0,0.001]
[1722727418995,0.02577983,60856.0,60848.0,0.001]
[1722727419192,0.023,60855.0,60846.0,0.16575089]
[1722727420005,0.023,60855.0,60848.0,0.001]
[1722727420365,0.023,60855.0,60846.0,0.16575089]
[1722727420560,0.00157439,60854.0,60846.0,0.16575089]
[1722727420777,0.00157439,60854.0,60846.0,0.16675089]
[1722727420976,0.00157439,60856.0,60846.0,0.16675089]
[1722727422070,0.00157439,60856.0,60846.0,0.16575089]
[1722727422535,0.00157439,60858.0,60846.0,0.16575089]
[1722727423179,0.08216,60857.0,60846.0,0.16675089]
[1722727423389,0.02457439,60856.0,60846.0,0.16675089]
[1722727423586,0.02457439,60856.0,60846.0,0.16575089]
[1722727423768,0.02578007,60855.0,60846.0,0.16575089]
[1722727423966,0.00157439,60854.0,60846.0,0.16775089]
[1722727424287,0.00157439,60854.0,60846.0,0.16675089]
[1722727424528,0.00157439,60855.0,60846.0,0.16675089]
[1722727424732,0.02457439,60857.0,60846.0,0.16675089]
[1722727425322,0.02457439,60857.0,60846.0,0.16575089]
[1722727425673,0.02457439,60857.0,60846.0,0.16675089]
[1722727426073,0.02457439,60857.0,60846.0,0.16575089]
[1722727426296,0.02457439,60857.0,60846.0,0.16775089]
[1722727427075,0.10673339,60857.0,60846.0,0.16775089]
[1722727427541,0.02578011,60855.0,60846.0,0.16775089]
[1722727427745,0.00157439,60854.0,60846.0,0.16775089]
[1722727428438,0.00157439,60854.0,60846.0,0.002]
[1722727428439,0.082173,60847.0,60846.0,0.002]
[1722727428637,0.105173,60847.0,60846.0,0.001]
[1722727428818,0.023,60847.0,60846.0,0.001]
[1722727429215,0.08217,60849.0,60846.0,0.001]
[1722727429423,0.10674639,60848.0,60844.0,0.000913]
[1722727429618,0.105173,60847.0,60846.0,0.006]
[1722727430147,0.023,60847.0,60846.0,0.004]
[1722727430343,0.02457439,60847.0,60844.0,0.000913]
[1722727430684,0.02457439,60847.0,60844.0,0.001913]
[1722727432182,0.02457439,60847.0,60844.0,0.000913]
[1722727432589,0.164349,60846.0,60844.0,0.000913]
[1722727432789,0.10675039,60845.0,60844.0,0.000913]
[1722727433048,0.082176,60845.0,60844.0,0.000913]
[1722727433248,0.105176,60845.0,60844.0,0.000913]
[1722727435047,0.5178951,60845.0,60844.0,0.000913]
[1722727435254,0.51632071,60845.0,60844.0,0.000913]
[1722727436224,0.54210493,60845.0,60844.0,0.000913]
[1722727436441,0.51632071,60845.0,60844.0,0.000913]
[1722727437067,0.35196871,60845.0,60844.0,0.000913]
[1722727439766,0.37775267,60845.0,60844.0,0.000913]
[1722727439989,0.54210467,60845.0,60844.0,0.000913]
[1722727440165,0.69650467,60845.0,60844.0,0.000913]
[1722727441020,0.67072071,60845.0,60844.0,0.000913]
[1722727441396,0.50636871,60845.0,60844.0,0.000913]
[1722727441597,0.5079431,60845.0,60844.0,0.000913]
[1722727441797,0.50636871,60845.0,60844.0,0.000913]
[1722727442028,0.35196871,60845.0,60844.0,0.000913]
[1722727442781,0.3535431,60845.0,60844.0,0.000913]
[1722727442986,0.35196871,60845.0,60844.0,0.000913]
[1722727443903,0.51632071,60845.0,60844.0,0.000913]
[1722727444245,0.35196871,60845.0,60844.0,0.000913]
[1722727444567,0.3535431,60845.0,60844.0,0.000913]
[1722727445783,0.37932738,60845.0,60844.0,0.000913]
[1722727445932,0.3535431,60845.0,60844.0,0.000913]
[1722727446513,0.35196871,60845.0,60844.0,0.000913]
[1722727447188,0.3535431,60845.0,60844.0,0.000913]
[1722727447388,0.35196871,60845.0,60844.0,0.000913]
[1722727448221,0.37775288,60845.0,60844.0,0.000913]
[1722727449386,0.04878417,60845.0,60844.0,0.000913]
[1722727449518,0.04878417,60845.0,60844.0,0.150013]
[1722727449725,0.13123606,60845.0,60844.0,0.000913]
[1722727450131,0.10545189,60845.0,60844.0,0.000913]
[1722727451697,0.023,60845.0,60844.0,0.000913]
[1722727451919,0.04922297,60854.0,60845.0,0.1491]
[1722727452134,0.08244987,60853.0,60845.0,0.1491]
[1722727452303,0.04922297,60858.0,60845.0,0.1491]
[1722727452509,0.08242071,60857.0,60845.0,0.1491]
[1722727453297,0.08242071,60857.0,60845.0,0.1501]
[1722727453498,0.02578036,60855.0,60845.0,0.1501]
[1722727453650,0.10542071,60854.0,60845.0,0.1501]
[1722727454004,0.023,60854.0,60845.0,0.1501]
[1722727454289,0.08241474,60853.0,60845.0,0.1501]
[1722727454501,0.023,60852.0,60845.0,0.1491]
[1722727454704,0.0011786,60851.0,60845.0,0.1501]
[1722727454877,0.04922297,60857.0,60845.0,0.1501]
[1722727454878,0.02457439,60855.0,60845.0,0.1501]
[1722727455079,0.02457439,60855.0,60845.0,0.1491]
[1722727455080,0.10541624,60854.0,60845.0,0.1491]
[1722727455281,0.08399063,60853.0,60845.0,0.1491]
[1722727455480,0.023,60852.0,60845.0,0.1491]
[1722727455695,0.105163,60854.0,60845.0,0.1491]
[1722727455862,0.08399016,60853.0,60845.0,0.1491]
[1722727456066,0.023,60852.0,60845.0,0.1491]
[1722727456269,0.00157439,60851.0,60845.0,0.1491]
[1722727456583,0.023,60853.0,60845.0,0.1491]
[1722727456910,0.08241959,60852.0,60845.0,0.1491]
[1722727457125,0.02457439,60851.0,60845.0,0.1491]
[1722727457326,0.023,60851.0,60845.0,0.1491]
[1722727457454,0.02457439,60855.0,60845.0,0.1491]
[1722727457660,0.08242093,60854.0,60845.0,0.1491]
[1722727457863,0.02578093,60850.0,60845.0,0.1491]
[1722727458063,0.02457439,60849.0,60845.0,0.1491]
[1722727458486,0.02457439,60849.0,60845.0,0.1501]
[1722727458692,0.00157439,60849.0,60845.0,0.1501]
[1722727459008,0.00157439,60852.0,60845.0,0.1491]
[1722727459378,0.00157439,60852.0,60844.0,0.197413]
[1722727459379,0.00157439,60852.0,60849.0,0.3456]
[1722727459593,0.05005297,60864.0,60850.0,0.16575089]
[1722727459594,0.04922297,60863.0,60850.0,0.16575089]
[1722727459795,0.08239222,60862.0,60850.0,0.16575089]